bitfinex/quotes_BTCUSD_20241014
["timestamp","ask_amount","ask_price","bid_price","bid_amount"]
[1728885710327,0.15638307,64002.0,64001.0,0.0436866]
[1728885710575,0.15838307,64002.0,64001.0,0.0436866]
[1728885710836,0.1597292,64002.0,64001.0,0.0306866]
[1728885711312,0.1597292,64002.0,64001.0,0.06344272]
[1728885711535,0.1597292,64002.0,64001.0,0.04944272]
[1728885711801,0.1613732,64002.0,64001.0,0.04935481]
[1728885712037,0.1613732,64002.0,64001.0,0.06335481]
[1728885712487,0.1613732,64002.0,64001.0,0.04935481]
[1728885712712,0.1613732,64002.0,64001.0,0.06335481]
[1728885719772,0.1613732,64002.0,64001.0,0.06335811]
[1728885721133,0.1593732,64002.0,64001.0,0.06335811]
[1728885721502,0.1613732,64002.0,64001.0,0.06335811]
[1728885721712,0.1613732,64002.0,64001.0,0.04757812]
[1728885721953,0.1613732,64002.0,64001.0,0.04460189]
[1728885722282,0.1613732,64002.0,64001.0,0.09147668]
[1728885722510,0.1613732,64002.0,64001.0,0.04460189]
[1728885722912,0.1593732,64002.0,64001.0,0.04460189]
[1728885723117,0.1613732,64002.0,64001.0,0.04460189]
[1728885723323,0.1613732,64002.0,64001.0,0.09147668]
[1728885724876,0.1613732,64002.0,64001.0,0.07747668]
[1728885725078,0.1613732,64002.0,64001.0,0.06347668]
[1728885725283,0.1613732,64002.0,64001.0,0.07249503]
[1728885725492,0.1613732,64002.0,64001.0,0.08349503]
[1728885725725,0.1613732,64002.0,64001.0,0.07449503]
[1728885726121,0.1613732,64002.0,64001.0,0.07249503]
[1728885726600,0.1613732,64002.0,64001.0,0.06349503]
[1728885727096,0.1613732,64002.0,64001.0,0.08349503]
[1728885728043,0.2410732,64002.0,64001.0,0.08349503]
[1728885728512,0.7399446,64002.0,64001.0,0.02560189]
[1728885728741,0.89982248,64002.0,64001.0,0.01660189]
[1728885728983,0.89982248,64002.0,64001.0,0.02860189]
[1728885729214,2.14682248,64002.0,64001.0,0.02889079]
[1728885729439,2.14682248,64002.0,64001.0,0.03860179]
[1728885729686,2.14682248,64002.0,64001.0,0.02860179]
[1728885729943,2.14682248,64002.0,64001.0,0.03760179]
[1728885731255,2.14682248,64002.0,64001.0,0.02789075]
[1728885731463,2.14682248,64002.0,64001.0,0.01889075]
[1728885731668,2.14682248,64002.0,64001.0,0.01989075]
[1728885731891,2.14682248,64002.0,64001.0,0.03089075]
[1728885732368,2.14682248,64002.0,64001.0,0.00689075]
[1728885732582,2.14782248,64002.0,64001.0,0.00789075]
[1728885733473,2.14682248,64002.0,64001.0,0.00689075]
[1728885734763,2.14782248,64002.0,64001.0,0.00689075]
[1728885735251,1.95545108,64002.0,64001.0,0.00789075]
[1728885735484,2.05163678,64002.0,64001.0,0.00789075]
[1728885735710,2.05063678,64002.0,64001.0,0.01758243]
[1728885735917,2.05063678,64002.0,64001.0,0.00789075]
[1728885736129,2.05163678,64002.0,64001.0,0.00689075]
[1728885736755,2.05063678,64002.0,64001.0,0.00689075]
[1728885737391,2.14682248,64002.0,64001.0,0.00689075]
[1728885738054,2.05063678,64002.0,64001.0,0.00689075]
[1728885738268,2.05063678,64002.0,64001.0,0.00889075]
[1728885738470,2.05063678,64002.0,64001.0,0.00789075]
[1728885738885,2.05063678,64002.0,64001.0,0.01758243]
[1728885739130,1.78822707,64002.0,64001.0,0.01658243]
[1728885739343,1.50002707,64002.0,64001.0,0.01658243]
[1728885739544,1.50002707,64002.0,64001.0,0.01858243]
[1728885739756,1.40002707,64002.0,64001.0,0.01658243]
[1728885740229,1.40102707,64002.0,64001.0,0.01658243]
[1728885740445,1.400889,64002.0,64001.0,0.000822]
[1728885740680,1.400889,64002.0,64001.0,0.03217322]
[1728885741110,1.40102707,64002.0,64001.0,0.03217322]
[1728885741558,1.40002707,64002.0,64001.0,0.03217322]
[1728885741768,1.40002707,64002.0,64001.0,0.04217322]
[1728885742181,1.40002707,64002.0,64001.0,0.03617322]
[1728885742410,1.40002707,64002.0,64001.0,0.04917322]
[1728885742668,1.40002707,64002.0,64001.0,0.04517322]
[1728885743113,1.40002707,64002.0,64001.0,0.05617322]
[1728885744402,1.40002707,64002.0,64001.0,0.04517333]
[1728885744609,1.40002707,64002.0,64001.0,0.01657095]
[1728885744827,1.40002707,64002.0,64001.0,0.04057095]
[1728885745048,0.15802707,64002.0,64001.0,0.04057095]
[1728885745730,0.001644,64002.0,64001.0,0.05617333]
[1728885745935,0.001644,64002.0,64001.0,0.04032105]
[1728885746849,0.001644,64002.0,64001.0,0.30676076]
[1728885747060,0.001644,64002.0,64001.0,0.36327577]
[1728885747273,0.001644,64002.0,64001.0,0.45706205]
[1728885747505,0.001644,64002.0,64001.0,0.37450965]
[1728885747957,0.001644,64002.0,64001.0,0.3587607]
[1728885748160,0.001644,64002.0,64001.0,0.37450674]
[1728885748588,0.001644,64002.0,64001.0,0.36327286]
[1728885748839,0.001644,64002.0,64001.0,0.45705914]
[1728885749754,0.001644,64002.0,64001.0,0.36327286]
[1728885750706,0.001644,64002.0,64001.0,0.39593125]
[1728885751584,0.001644,64002.0,64001.0,0.31451814]
[1728885751789,0.001644,64002.0,64001.0,0.31450901]
[1728885752408,0.001644,64002.0,64001.0,0.31450713]
[1728885755456,0.001644,64002.0,64001.0,0.31450277]
[1728885756001,0.001644,64002.0,64001.0,0.31425287]
[1728885756465,0.001644,64002.0,64001.0,0.38443267]
[1728885756690,0.001644,64002.0,64001.0,0.31425287]
[1728885757115,0.001644,64002.0,64001.0,0.38442891]
[1728885757535,0.001644,64002.0,64001.0,0.31425287]
[1728885758628,0.001644,64002.0,64001.0,0.36102991]
[1728885759144,0.001644,64002.0,64001.0,0.3722549]
[1728885759390,0.001644,64002.0,64001.0,0.3722507]
[1728885759829,0.001644,64002.0,64001.0,0.3612507]
[1728885760257,0.001644,64002.0,64001.0,0.3592507]
[1728885760464,0.001644,64002.0,64001.0,0.3732507]
[1728885760675,0.001644,64002.0,64001.0,0.3856497]
[1728885761153,0.001644,64002.0,64001.0,1.0856497]
[1728885761391,0.001644,64002.0,64001.0,1.0996497]
[1728885761590,0.001644,64002.0,64001.0,1.00147366]
[1728885761862,0.001644,64002.0,64001.0,1.02947366]
[1728885762068,0.001644,64002.0,64001.0,1.0996497]
[1728885762495,0.001644,64002.0,64001.0,1.02947366]
[1728885763227,0.001644,64002.0,64001.0,1.49821366]
[1728885763453,0.001644,64002.0,64001.0,1.49822454]
[1728885763681,0.001644,64002.0,64001.0,1.48422454]
[1728885764385,0.001644,64002.0,64001.0,1.49822454]
[1728885765271,0.23401061,64007.0,64001.0,1.49822454]
[1728885765537,0.156235,64006.0,64002.0,0.06248924]
[1728885765748,0.156235,64006.0,64003.0,0.48446735]
[1728885765954,0.00013807,64007.0,64004.0,0.01548838]
[1728885766168,0.00013807,64007.0,64005.0,0.47839492]
[1728885766385,0.00013807,64007.0,64006.0,0.00968492]
[1728885766386,0.15637107,64007.0,64006.0,0.00968492]
[1728885766800,0.15637107,64007.0,64006.0,0.02089203]
[1728885767925,0.15637007,64007.0,64006.0,0.02089203]
[1728885768192,0.15637007,64007.0,64006.0,0.03489203]
[1728885768441,0.00013807,64007.0,64006.0,0.03489203]
[1728885768675,0.15637007,64007.0,64006.0,0.03489203]
[1728885768923,0.15637007,64007.0,64006.0,0.02089203]
[1728885769634,0.15637007,64007.0,64006.0,0.03489203]
[1728885770100,0.15637007,64007.0,64006.0,0.02089203]
[1728885770327,0.15637007,64007.0,64006.0,0.04889203]
[1728885770556,0.15637007,64007.0,64006.0,0.03919952]
[1728885770797,0.15637007,64007.0,64006.0,0.04890294]
[1728885773398,0.15637007,64007.0,64006.0,0.03490294]
[1728885773631,0.1577162,64007.0,64006.0,0.03490294]
[1728885773853,0.1577162,64007.0,64006.0,0.04890294]
[1728885774097,0.1577162,64007.0,64006.0,0.03770342]
[1728885774662,0.1577162,64007.0,64006.0,0.03770759]
[1728885775096,0.1577162,64007.0,64006.0,0.02370759]
[1728885775328,0.1577162,64007.0,64006.0,0.03938465]
[1728885775542,0.1577162,64007.0,64006.0,0.05338465]
[1728885775972,0.15637007,64007.0,64006.0,0.05313475]
[1728885776180,0.15637007,64007.0,64006.0,0.03938465]
[1728885776410,0.15637007,64007.0,64006.0,0.05338465]
[1728885778011,0.15637007,64007.0,64006.0,0.05945631]
[1728885778483,0.15637007,64007.0,64006.0,0.05946436]
[1728885778706,0.15637007,64007.0,64006.0,0.1083037]
[1728885778921,0.15837007,64007.0,64006.0,0.1083037]
[1728885779133,0.15637007,64007.0,64006.0,0.1083037]
[1728885780275,0.12315761,64007.0,64006.0,0.1083037]
[1728885780496,0.12315761,64007.0,64006.0,0.05946436]
[1728885780985,0.12315761,64007.0,64006.0,0.04367706]
[1728885781227,0.12315761,64007.0,64006.0,0.05946413]
[1728885781228,0.12450374,64007.0,64006.0,0.05946413]
[1728885781453,0.12614774,64007.0,64006.0,0.05946413]
[1728885781892,0.12614774,64007.0,64006.0,0.07160828]
[1728885782121,0.12600967,64007.0,64006.0,0.09038011]
[1728885782353,0.12614774,64007.0,64006.0,0.07160828]
[1728885782585,0.12414774,64007.0,64006.0,0.09037816]
[1728885784675,0.12414774,64007.0,64006.0,0.13717357]
[1728885785490,0.12414774,64007.0,64006.0,0.09037742]
[1728885785925,0.12414774,64007.0,64006.0,0.1372549]
[1728885786106,0.12614774,64007.0,64006.0,0.13700601]
[1728885786541,0.12280161,64007.0,64006.0,0.09012853]
[1728885786965,0.12414774,64007.0,64006.0,0.09012853]
[1728885787179,0.12414774,64007.0,64006.0,0.13701095]
[1728885787413,0.12614774,64007.0,64006.0,0.09012853]
[1728885788474,0.12614774,64007.0,64006.0,0.04342817]
[1728885788666,0.12614774,64007.0,64006.0,0.08995685]
[1728885789820,0.12600967,64007.0,64006.0,0.08995685]
[1728885790018,0.12614774,64007.0,64006.0,0.08995685]
[1728885790424,0.12614774,64007.0,64006.0,0.13684897]
[1728885791687,0.12614774,64007.0,64006.0,0.08995685]
[1728885794080,0.12614774,64007.0,64006.0,0.09077885]
[1728885795373,0.0051282,64007.0,64006.0,0.13768805]
[1728885795581,0.1613602,64007.0,64006.0,0.13768805]
[1728885796043,0.1613602,64007.0,64006.0,0.10297886]
[1728885796310,0.1613602,64007.0,64006.0,0.13742853]
[1728885796529,0.1613602,64007.0,64006.0,0.13742846]
[1728885799586,0.1613602,64007.0,64006.0,0.12342846]
[1728885799795,0.1613602,64007.0,64006.0,0.12343062]
[1728885799998,0.1613602,64007.0,64006.0,0.13543062]
[1728885800264,0.1613602,64007.0,64006.0,0.12143062]
[1728885800673,0.1613602,64007.0,64006.0,0.13543062]
[1728885801088,0.1613602,64007.0,64006.0,0.10943062]
[1728885801295,0.1613602,64007.0,64006.0,0.09215898]
[1728885801535,0.1613602,64007.0,64006.0,0.07652142]
[1728885801742,0.1613602,64007.0,64006.0,0.08652142]
[1728885801958,0.5606602,64007.0,64006.0,0.08652142]
[1728885802176,0.55897618,64007.0,64006.0,0.07652142]
[1728885802386,0.55897618,64007.0,64006.0,0.08952142]
[1728885802599,0.55897618,64007.0,64006.0,0.07434214]
[1728885802600,1.96220019,64007.0,64006.0,0.07434214]
[1728885802828,1.96720019,64007.0,64006.0,0.07434214]
[1728885803039,1.96720019,64007.0,64006.0,0.06134214]
[1728885803468,1.96720019,64007.0,64006.0,0.000822]
[1728885803686,1.96720019,64007.0,64006.0,0.05931635]
[1728885804149,1.96720019,64007.0,64006.0,0.02855958]
[1728885804368,1.96820019,64007.0,64006.0,0.02855958]
[1728885804579,1.96820019,64007.0,64006.0,0.02649875]
[1728885804786,1.96820019,64007.0,64006.0,0.03855254]
[1728885804995,1.96820019,64007.0,64006.0,0.02855254]
[1728885805200,1.96820019,64007.0,64006.0,0.01649875]
[1728885805445,1.97020019,64007.0,64006.0,0.02854752]
[1728885805873,1.97020019,64007.0,64005.0,0.46871]
[1728885805874,0.28637307,64006.0,64005.0,0.46871]
[1728885806079,0.28637307,64006.0,64005.0,0.46821219]
[1728885806080,0.72114321,64006.0,64005.0,0.46821219]
[1728885806290,0.71979708,64006.0,64005.0,0.46821219]
[1728885807022,0.71979708,64006.0,64005.0,0.31197219]
[1728885807249,0.00713807,64003.0,64002.0,0.000822]
[1728885807453,0.91751385,64003.0,64002.0,0.000822]
[1728885807664,0.91616772,64003.0,64002.0,0.000822]
[1728885809243,0.8200359,64003.0,64002.0,0.000822]
[1728885809437,0.8200359,64003.0,64002.0,0.002822]
[1728885809643,0.91616772,64003.0,64002.0,0.002822]
[1728885810058,0.8200359,64003.0,64002.0,0.002822]
[1728885810786,0.8200359,64003.0,64002.0,0.000822]
[1728885810991,0.91716772,64003.0,64002.0,0.003822]
[1728885811205,0.91716772,64003.0,64002.0,0.000822]
[1728885811947,0.91816772,64003.0,64002.0,0.000822]
[1728885812383,0.91616772,64003.0,64002.0,0.000822]
[1728885812587,0.91716772,64003.0,64002.0,0.000822]
[1728885813001,0.8210359,64003.0,64002.0,0.000822]
[1728885813347,1.70058007,64003.0,64002.0,0.000822]
[1728885813445,1.79671189,64003.0,64002.0,0.000822]
[1728885813681,1.79771189,64003.0,64002.0,0.000822]
[1728885813917,1.79671189,64003.0,64002.0,0.000822]
[1728885814147,1.79771189,64003.0,64002.0,0.000822]
[1728885814633,1.81871189,64003.0,64002.0,0.000822]
[1728885815132,1.81371189,64003.0,64002.0,0.003822]
[1728885815362,1.81371189,64003.0,64002.0,0.001822]
[1728885815616,1.81371189,64003.0,64002.0,0.000822]
[1728885816131,1.81371189,64003.0,64002.0,0.01009606]
[1728885816799,1.81371189,64003.0,64002.0,0.01109606]
[1728885817007,1.81371189,64003.0,64002.0,0.02200047]
[1728885817433,1.81371189,64003.0,64002.0,0.02300047]
[1728885817860,1.81371189,64003.0,64002.0,0.02895214]
[1728885822734,1.81371189,64003.0,64002.0,0.02896417]
[1728885823863,1.9799359,64003.0,64002.0,0.02896417]
[1728885824118,2.15196772,64003.0,64002.0,0.02896417]
[1728885824370,2.15196772,64003.0,64002.0,0.02896692]
[1728885824632,2.15196772,64003.0,64002.0,0.017054]
[1728885824887,2.15396772,64003.0,64002.0,0.016054]
[1728885825124,2.15696772,64003.0,64002.0,0.016054]
[1728885825353,2.15396772,64003.0,64002.0,0.016054]
[1728885825598,2.15596772,64003.0,64002.0,0.016054]
[1728885825829,2.15696772,64003.0,64002.0,0.0065269]
[1728885826064,2.15696772,64003.0,64002.0,0.01580789]
[1728885826305,2.15496772,64003.0,64002.0,0.015559]
[1728885826964,2.15196772,64003.0,64002.0,0.015559]
[1728885827210,2.15396772,64003.0,64002.0,0.015559]
[1728885827462,2.15896772,64003.0,64002.0,0.016559]
[1728885827678,2.15196772,64003.0,64002.0,0.015559]
[1728885827891,2.15596772,64003.0,64002.0,0.016559]
[1728885828100,2.15896772,64003.0,64002.0,0.017559]
[1728885828827,2.15696772,64003.0,64002.0,0.016559]
[1728885829049,2.15896772,64003.0,64002.0,0.017559]
[1728885829488,2.15696772,64003.0,64002.0,0.017559]
[1728885829948,2.15696772,64003.0,64002.0,0.00207534]
[1728885830212,0.55828307,64002.0,64001.0,9.2e-07]
[1728885830456,0.72150708,64002.0,64001.0,9.2e-07]
[1728885830687,0.71750708,64002.0,64001.0,9.2e-07]
[1728885830916,0.71950708,64002.0,64001.0,9.2e-07]
[1728885831152,0.71750708,64002.0,64001.0,9.2e-07]
[1728885831443,0.71750708,64002.0,64001.0,0.01172257]
[1728885831444,0.90977072,64002.0,64001.0,0.01172257]
[1728885831689,0.91477072,64002.0,64001.0,0.01372257]
[1728885831933,0.91177072,64002.0,64001.0,0.01172257]
[1728885832175,0.91477072,64002.0,64001.0,0.01272248]
[1728885832424,0.91477072,64002.0,64001.0,0.02465828]
[1728885832898,0.91477072,64002.0,64001.0,0.01272248]
[1728885833138,0.92558646,64002.0,64001.0,0.01272248]
[1728885833375,0.92558646,64002.0,64001.0,0.02465923]
[1728885833607,0.92258646,64002.0,64001.0,0.02365923]
[1728885833867,0.92958646,64002.0,64001.0,0.02465923]
[1728885834358,0.92958646,64002.0,64001.0,0.02365923]
[1728885834359,2.16958646,64002.0,64001.0,0.02365923]
[1728885834606,2.16458646,64002.0,64001.0,0.02365923]
[1728885834847,2.16658646,64002.0,64001.0,0.02365923]
[1728885835092,2.16858646,64002.0,64001.0,0.02365923]
[1728885835327,2.16458646,64002.0,64001.0,0.02365923]
[1728885835577,2.17158646,64002.0,64001.0,0.01172248]
[1728885835820,2.17158646,64002.0,64001.0,0.02365881]
[1728885836331,2.17158646,64002.0,64001.0,0.01147359]
[1728885836856,2.16458646,64002.0,64001.0,0.01147359]
[1728885837341,2.17058646,64002.0,64001.0,0.01147359]
[1728885837849,2.16458646,64002.0,64001.0,0.01147359]
[1728885838081,2.16858646,64002.0,64001.0,0.02340933]
[1728885838322,2.16658646,64002.0,64001.0,0.02340933]
[1728885838584,2.16758646,64002.0,64001.0,0.02340933]
[1728885838832,2.16658646,64002.0,64001.0,0.02340933]
[1728885839995,2.16458646,64002.0,64001.0,0.01147359]
[1728885840253,2.16858646,64002.0,64001.0,0.03295582]
[1728885840500,2.16458646,64002.0,64001.0,0.03295582]
[1728885840744,2.16658646,64002.0,64001.0,0.03295582]
[1728885840975,2.16958646,64002.0,64001.0,0.02148171]
[1728885841228,2.16758646,64002.0,64001.0,0.02148171]
[1728885841476,0.28639707,63996.0,63995.0,0.00994735]
[1728885841720,0.5437529,63996.0,63995.0,0.03143147]
[1728885842201,0.5437529,63996.0,63995.0,0.0373983]
[1728885843823,0.5437529,63996.0,63995.0,0.0393983]
[1728885844129,0.5437529,63996.0,63995.0,0.0402203]
[1728885844841,0.5437529,63996.0,63995.0,0.0382203]
[1728885845096,0.5437529,63996.0,63995.0,0.0422203]
[1728885845317,0.5437529,63996.0,63995.0,0.02927295]
[1728885845790,0.5437529,63996.0,63995.0,0.03127295]
[1728885846271,1.7857529,63996.0,63995.0,0.03127295]
[1728885846517,1.7867529,63996.0,63995.0,0.03027295]
[1728885847028,1.7867529,63996.0,63995.0,0.03227295]
[1728885847501,1.69062108,63996.0,63995.0,0.03027295]
[1728885847996,1.68562108,63996.0,63995.0,0.03028043]
[1728885848242,1.68462108,63996.0,63995.0,0.02828043]
[1728885848729,1.68462108,63996.0,63995.0,0.03028043]
[1728885848982,1.68462108,63996.0,63995.0,0.02828043]
[1728885849464,1.68962108,63996.0,63995.0,0.03128043]
[1728885849700,1.68462108,63996.0,63995.0,0.03328043]
[1728885851905,1.52339707,63996.0,63995.0,0.03328043]
[1728885852139,1.50039707,63996.0,63995.0,0.03328043]
[1728885852364,1.50039707,63996.0,63995.0,0.03322704]
[1728885853460,1.59652889,63996.0,63995.0,0.03322704]
[1728885857796,1.50039707,63996.0,63995.0,0.03322704]
[1728885858052,1.59652889,63996.0,63995.0,0.03322704]
[1728885858297,0.15639707,63996.0,63995.0,0.10982704]
[1728885858551,0.15839707,63996.0,63995.0,0.10982704]
[1728885859050,0.15639707,63996.0,63995.0,0.10982704]
[1728885859260,0.15839707,63996.0,63995.0,0.10682704]
[1728885859709,0.25839707,63996.0,63995.0,0.11282704]
[1728885859931,0.25639707,63996.0,63995.0,0.11082704]
[1728885860141,0.25639707,63996.0,63995.0,0.11382704]
[1728885860373,0.25839707,63996.0,63995.0,0.11382704]
[1728885860804,0.25839707,63996.0,63995.0,0.10482704]
[1728885861012,0.25839707,63996.0,63995.0,0.11182704]
[1728885861223,0.25839707,63996.0,63995.0,0.11782704]
[1728885861439,0.25839707,63996.0,63995.0,0.10482704]
[1728885861906,0.25839707,63996.0,63995.0,0.11882704]
[1728885862559,0.25839707,63996.0,63995.0,0.11082704]
[1728885862782,0.25827549,63996.0,63995.0,0.11082704]
[1728885862996,0.25827549,63996.0,63995.0,0.11982704]
[1728885863636,0.25827549,63996.0,63995.0,0.086422]
[1728885863854,0.25827549,63996.0,63995.0,0.11381373]
[1728885864066,0.25827549,63996.0,63995.0,0.12081373]
[1728885865787,0.25827549,63996.0,63995.0,0.04421373]
[1728885867660,0.25827549,63996.0,63995.0,0.04421011]
[1728885868138,0.25962162,63996.0,63995.0,0.04421011]
[1728885870264,0.44722162,63996.0,63995.0,0.04421011]
[1728885870524,0.44587549,63996.0,63995.0,0.04421011]
[1728885873067,0.44587549,63996.0,63995.0,0.0382591]
[1728885873280,0.46887549,63996.0,63995.0,0.04421283]
[1728885873506,0.6300995,63996.0,63995.0,0.04421283]
[1728885875953,1.8720995,63996.0,63995.0,0.04421283]
[1728885876390,1.9549995,63996.0,63995.0,0.04421283]
[1728885876598,1.9549995,63996.0,63995.0,0.05414052]
[1728885877073,1.9549995,63996.0,63995.0,0.04421283]
[1728885877388,1.9549995,63996.0,63995.0,0.03721283]
[1728885877550,1.9549995,63996.0,63995.0,0.04121283]
[1728885878255,1.9549995,63996.0,63995.0,0.03221283]
[1728885878745,1.9549995,63996.0,63995.0,0.03821283]
[1728885878978,1.9549995,63996.0,63995.0,0.03421283]
[1728885879468,1.9549995,63996.0,63995.0,0.02821283]
[1728885879469,1.9599995,63996.0,63995.0,0.02821283]
[1728885879719,1.9599995,63996.0,63995.0,0.03021283]
[1728885880437,1.9599995,63996.0,63995.0,0.03121283]
[1728885880896,1.9599995,63996.0,63995.0,0.03021283]
[1728885881191,2.05613132,63996.0,63995.0,8.3e-07]
[1728885881440,2.12829885,63996.0,63995.0,8.3e-07]
[1728885881687,2.05813132,63996.0,63995.0,8.3e-07]
[1728885882170,2.03215086,63996.0,63995.0,8.3e-07]
[1728885882399,2.03579486,63996.0,63995.0,8.3e-07]
[1728885882629,1.9676435,63996.0,63995.0,8.3e-07]
[1728885882858,1.9656435,63996.0,63995.0,8.3e-07]
[1728885883604,1.9636435,63996.0,63995.0,8.3e-07]
[1728885883828,1.9636435,63996.0,63995.0,0.00100083]
[1728885883829,1.9646435,63996.0,63995.0,0.00100083]
[1728885884336,1.9676435,63996.0,63995.0,8.3e-07]
[1728885884573,2.01438909,63996.0,63995.0,8.3e-07]
[1728885884824,2.20665273,63996.0,63995.0,8.3e-07]
[1728885885053,2.2300585,63996.0,63995.0,8.3e-07]
[1728885885285,2.42599133,63996.0,63995.0,8.3e-07]
[1728885885509,2.33245618,63996.0,63995.0,8.3e-07]
[1728885885773,2.42599133,63996.0,63995.0,8.3e-07]
[1728885886257,2.42592167,63996.0,63995.0,8.3e-07]
[1728885886485,0.74757271,63991.0,63990.0,1e-06]
[1728885886738,2.15079672,63991.0,63990.0,1e-06]
[1728885887610,2.14879672,63991.0,63990.0,1e-06]
[1728885887832,2.15079672,63991.0,63990.0,1e-06]
[1728885888062,2.15279672,63991.0,63990.0,1e-06]
[1728885888289,2.15479672,63991.0,63990.0,1e-06]
[1728885888504,2.15779672,63991.0,63990.0,1e-06]
[1728885890168,0.75158271,63987.0,63986.0,0.000821]
[1728885890476,0.91280672,63987.0,63986.0,0.000821]
[1728885891390,0.91280672,63987.0,63979.0,0.00945663]
[1728885891391,0.48113607,63980.0,63979.0,0.00945663]
[1728885891643,0.7384919,63980.0,63979.0,0.00945663]
[1728885892820,0.7384919,63980.0,63979.0,0.01645663]
[1728885893563,0.5387919,63980.0,63979.0,0.02736644]
[1728885893811,1.7807919,63980.0,63979.0,0.02736644]
[1728885894268,1.7807919,63980.0,63979.0,0.012]
[1728885894498,1.7807919,63980.0,63979.0,0.027365]
[1728885895151,1.7807919,63980.0,63979.0,0.028187]
[1728885895152,1.79162028,63980.0,63979.0,0.028187]
[1728885899786,2.05022028,63980.0,63979.0,0.028187]
[1728885901075,2.1463521,63980.0,63979.0,0.012822]
[1728885901302,2.05022028,63980.0,63979.0,0.0281916]
[1728885903550,1.97412028,63980.0,63979.0,0.0281916]
[1728885904867,1.97412028,63980.0,63979.0,0.04002426]
[1728885905308,1.97412028,63980.0,63979.0,0.04002448]
[1728885906775,1.9734307,63980.0,63979.0,0.04002448]
[1728885908489,1.9734307,63980.0,63979.0,0.02453956]
[1728885908700,1.9734307,63980.0,63979.0,0.05177909]
[1728885908919,1.9734307,63980.0,63979.0,0.04006153]
[1728885910864,1.87729888,63980.0,63979.0,0.04006153]
[1728885911066,1.9734307,63980.0,63979.0,0.04006153]
[1728885911486,1.9734307,63980.0,63979.0,0.02806153]
[1728885912528,1.9744307,63980.0,63979.0,0.02808754]
[1728885915195,1.87829888,63980.0,63979.0,0.02808754]
[1728885915431,1.9744307,63980.0,63979.0,0.02808754]
[1728885916527,1.9744307,63980.0,63979.0,0.02810736]
[1728885916750,1.53457487,63980.0,63979.0,0.02810736]
[1728885916998,1.63070669,63980.0,63979.0,0.02810736]
[1728885917640,1.62970669,63980.0,63979.0,0.02810736]
[1728885918110,1.63070669,63980.0,63979.0,0.02810736]
[1728885918332,1.51157487,63980.0,63979.0,0.02910736]
[1728885918547,1.60670669,63980.0,63979.0,0.02910736]
[1728885919210,1.60670669,63980.0,63979.0,0.02810736]
[1728885919449,1.60670669,63980.0,63979.0,0.03410736]
[1728885920739,1.60670669,63980.0,63979.0,0.03411147]
[1728885920942,1.60670669,63980.0,63979.0,0.02811147]
[1728885921153,1.60670669,63980.0,63979.0,0.03211147]
[1728885921357,1.60670669,63980.0,63979.0,0.03411147]
[1728885921565,1.60670669,63980.0,63979.0,0.03011147]
[1728885922027,1.60670669,63980.0,63979.0,0.03111147]
[1728885923522,1.51057487,63980.0,63979.0,0.03111147]
[1728885923739,1.60670669,63980.0,63979.0,0.03111147]
[1728885923953,1.51057487,63980.0,63979.0,0.03011147]
[1728885924163,1.60670669,63980.0,63979.0,0.02811147]
[1728885924394,1.60670669,63980.0,63979.0,0.03311147]
[1728885924810,1.60670669,63980.0,63979.0,0.02811147]
[1728885925027,1.60670669,63980.0,63979.0,0.03311147]
[1728885925232,1.60670669,63980.0,63979.0,0.03411147]
[1728885925479,1.60670669,63980.0,63979.0,0.02911147]
[1728885925724,1.60670669,63980.0,63979.0,0.03311147]
[1728885925930,1.60670669,63980.0,63979.0,0.02811147]
[1728885926346,1.49974649,63980.0,63979.0,0.02811147]
[1728885927493,1.49974649,63980.0,63979.0,0.11561147]
[1728885927724,1.49843607,63980.0,63979.0,0.11561147]
[1728885927928,1.49843607,63980.0,63979.0,0.11010893]
[1728885928140,1.49974649,63980.0,63979.0,0.11959495]
[1728885928831,1.498298,63980.0,63979.0,0.11959495]
[1728885929052,0.256298,63980.0,63979.0,0.31899495]
[1728885929268,0.31271307,63985.0,63981.0,0.0819]
[1728885929269,0.312575,63985.0,63981.0,0.0819]
[1728885929508,0.312575,63985.0,63980.0,0.1994]
[1728885929509,1.554555,63989.0,63983.0,0.1994]
[1728885929747,1.554555,63989.0,63984.0,0.11631978]
[1728885929748,0.157928,63986.0,63984.0,0.11631978]
[1728885929968,0.001644,63986.0,63985.0,0.02727295]
[1728885930216,0.157928,63986.0,63985.0,0.02727295]
[1728885930436,0.157928,63986.0,63985.0,0.03951137]
[1728885930650,0.001644,63986.0,63985.0,0.51003656]
[1728885931098,0.157928,63986.0,63985.0,0.30191137]
[1728885931561,0.157928,63986.0,63985.0,0.31386704]
[1728885932018,0.157928,63986.0,63985.0,0.32686704]
[1728885932275,0.15923842,63986.0,63985.0,0.30186704]
[1728885932500,0.15923842,63986.0,63985.0,0.05046704]
[1728885932921,0.157928,63986.0,63985.0,0.05046704]
[1728885933143,0.15923842,63986.0,63985.0,0.05046704]
[1728885933373,0.157928,63986.0,63985.0,0.05046704]
[1728885933577,0.157928,63986.0,63985.0,0.06246704]
[1728885933792,0.157928,63986.0,63985.0,0.05046704]
[1728885934231,0.157928,63986.0,63985.0,0.05246704]
[1728885934442,0.157928,63986.0,63985.0,0.02523842]
[1728885934661,0.157928,63986.0,63985.0,0.05244723]
[1728885935110,0.157928,63986.0,63985.0,0.05144723]
[1728885935113,0.157928,63986.0,63985.0,0.30884723]
[1728885935344,0.157928,63986.0,63985.0,0.32084723]
[1728885935586,0.157928,63986.0,63985.0,0.33384204]
[1728885936708,0.157928,63986.0,63985.0,0.32184204]
[1728885936926,0.001644,63986.0,63985.0,0.33284204]
[1728885937146,0.157928,63986.0,63985.0,0.31984204]
[1728885937358,0.157928,63986.0,63985.0,0.30884204]
[1728885937576,0.157928,63986.0,63985.0,0.32084204]
[1728885938266,0.157928,63986.0,63985.0,0.32184204]
[1728885938495,0.157928,63986.0,63985.0,0.33284204]
[1728885938701,0.157928,63986.0,63985.0,1.03284204]
[1728885938979,0.001644,63986.0,63985.0,1.03284204]
[1728885939212,0.001644,63986.0,63985.0,1.19406605]
[1728885940389,0.001644,63986.0,63985.0,1.17006605]
[1728885940601,0.001644,63986.0,63985.0,1.66492605]
[1728885941040,0.001644,63986.0,63985.0,1.63892605]
[1728885941252,0.001644,63986.0,63985.0,1.65292605]
[1728885941540,0.001644,63986.0,63985.0,1.66692605]
[1728885941748,0.001644,63986.0,63985.0,1.65292605]
[1728885941957,0.001644,63986.0,63985.0,1.66692605]
[1728885943270,0.001644,63986.0,63985.0,1.65292605]
[1728885943714,0.001644,63986.0,63985.0,1.66690693]
[1728885944164,0.001644,63986.0,63985.0,1.63890693]
[1728885944380,0.156271,63992.0,63985.0,1.63890693]
[1728885944590,0.156271,63992.0,63986.0,0.18840851]
[1728885944831,0.54640654,63993.0,63987.0,0.46885]
[1728885945012,0.156272,63991.0,63988.0,0.18840674]
[1728885945223,0.156272,63991.0,63989.0,0.49601273]
[1728885945428,0.156272,63991.0,63990.0,0.18840674]
[1728885945639,0.156272,63991.0,63990.0,0.65722674]
[1728885945845,0.156272,63991.0,63990.0,1.36750507]